bitfinex-derivatives/quotes_SOLF0:USTF0_20240925
["timestamp","ask_amount","ask_price","bid_price","bid_amount"]
[1727229360201,11.83470022,152.77,152.69,12.58]
[1727229360408,1.00302711,152.76,152.69,12.58]
[1727229360608,15.10740022,152.77,152.73,3.2734]
[1727229360810,1.00302715,152.76,152.73,3.2734]
[1727229361208,15.85285264,152.78,152.74,3.2733]
[1727229361407,1.00302701,152.77,152.71,12.58]
[1727229361614,1.00302701,152.77,152.69,12.58]
[1727229361911,1.00302701,152.76,152.69,12.58]
[1727229362708,1.00302701,152.76,152.73,3.2734]
[1727229362915,1.00302701,152.76,152.69,12.58]
[1727229363107,12.85283197,152.76,152.69,12.58]
[1727229363309,3.2732,152.75,152.71,3.2738]
[1727229363614,12.85283197,152.78,152.69,12.58]
[1727229363818,3.2735,152.74,152.7,3.274]
[1727229364220,11.84980496,152.77,152.69,12.58]
[1727229364516,1.00301091,152.76,152.69,12.58]
[1727229364715,3.3408593,152.75,152.69,12.58]
[1727229365114,11.84980496,152.77,152.69,12.58]
[1727229365115,3.2735,152.74,152.7,3.2741]
[1727229365310,3.33103517,152.74,152.67,12.58]
[1727229365507,13.88004918,152.76,152.67,12.58]
[1727229365711,3.2738,152.72,152.69,3.2744]
[1727229366018,3.28158705,152.74,152.69,3.2744]
[1727229366221,3.28158705,152.74,152.67,12.58]
[1727229366222,13.88004918,152.76,152.67,12.58]
[1727229366418,1.00308663,152.75,152.67,12.58]
[1727229366610,3.32153851,152.74,152.67,12.58]
[1727229367015,13.88004918,152.76,152.67,12.58]
[1727229367219,1.0031069,152.75,152.67,12.58]
[1727229367418,3.2127011,152.75,152.67,12.58]
[1727229367618,13.88004918,152.76,152.67,12.58]
[1727229367819,3.2736,152.73,152.7,3.2742]
[1727229368011,6.56162436,152.73,152.7,3.2742]
[1727229368216,3.2736,152.73,152.7,3.2742]
[1727229368514,3.2736,152.73,152.69,3.2744]
[1727229368714,12.62427664,152.74,152.65,12.58]
[1727229368912,17.23603121,152.74,152.65,12.58]
[1727229369114,29.08583617,152.74,152.65,12.58]
[1727229369314,3.2741,152.71,152.68,3.2746]
[1727229369719,24.4740816,152.73,152.68,3.2746]
[1727229370023,3.2738,152.72,152.68,3.2746]
[1727229370619,15.12360496,152.72,152.68,3.2746]
[1727229370819,15.12380496,152.71,152.68,3.2746]
[1727229371020,12.58,152.73,152.62,15.2941]
[1727229371218,39.18332919,152.73,152.64,12.58]
[1727229371526,3.274,152.71,152.64,12.58]
[1727229371719,41.07680851,152.71,152.64,12.58]
[1727229371920,11.89502812,152.7,152.64,12.58]
[1727229372119,3.274,152.71,152.67,3.2747]
[1727229372315,15.16922812,152.7,152.67,3.2747]
[1727229372513,15.16922812,152.7,152.64,12.58]
[1727229372714,3.2742,152.7,152.66,3.2748]
[1727229373122,3.2742,152.7,152.65,3.2751]
[1727229373326,3.2742,152.7,152.64,12.58]
[1727229373523,3.274,152.71,152.64,12.58]
[1727229373818,16.50546722,152.74,152.66,12.58]
[1727229374027,3.2736,152.73,152.66,12.58]
[1727229374319,11.89371265,152.72,152.69,11.3243]
[1727229374525,37.79749718,152.73,152.69,11.3243]
[1727229374720,12.63098184,152.72,152.69,11.3243]
[1727229374919,24.52469449,152.73,152.69,11.3243]
[1727229375930,15.16751265,152.72,152.69,11.3243]
[1727229376226,8.05,152.71,152.65,8.05]
[1727229377218,12.63151983,152.72,152.69,11.3243]
[1727229377426,42.4094006,152.74,152.69,11.3243]
[1727229377625,37.79764603,152.73,152.67,8.05]
[1727229377833,45.8477514,152.72,152.66,8.05]
[1727229378032,24.52523248,152.71,152.66,8.05]
[1727229378329,11.89371265,152.71,152.69,11.3242]
[1727229378532,12.63050266,152.72,152.69,11.3242]
[1727229378721,11.89371265,152.72,152.69,11.3242]
[1727229378923,11.89371265,152.72,152.7,8.05]
[1727229379125,15.16731265,152.73,152.7,8.05]
[1727229379327,3.2736,152.73,152.7,8.05]
[1727229379925,8.05,152.72,152.67,3.2747]
[1727229380121,8.05,152.72,152.67,11.3247]
[1727229380620,3.2741,152.71,152.68,3.2746]
[1727229380825,11.89280575,152.72,152.68,8.05]
[1727229381221,11.89280575,152.72,152.69,3.2743]
[1727229381424,8.05,152.73,152.69,3.2743]
[1727229381625,19.94337785,152.73,152.69,3.2743]
[1727229381827,8.05,152.73,152.69,3.2743]
[1727229382028,3.2739,152.72,152.69,3.2743]
[1727229384932,3.2736,152.73,152.7,3.2741]
[1727229385131,9.80290283,152.83,152.62,2.7141]
[1727229385132,11.8925898,152.82,152.71,8.05]
[1727229385332,11.8925898,152.74,152.71,8.05]
[1727229385641,29.06908027,152.76,152.73,3.2735]
[1727229385930,29.06908027,152.76,152.72,8.05]
[1727229385931,11.8925898,152.75,152.72,8.05]
[1727229386134,3.28889479,152.74,152.71,8.05]
[1727229386439,11.8925898,152.75,152.71,8.05]
[1727229386834,25.79617513,152.76,152.71,8.05]
[1727229387039,24.52247513,152.75,152.72,3.2737]
[1727229387237,24.52247513,152.75,152.71,8.05]
[1727229387639,24.52247513,152.75,152.72,11.3235]
[1727229388839,27.81890274,152.75,152.71,11.3239]
[1727229389143,11.8925898,152.74,152.71,11.3239]
[1727229389533,11.8925898,152.74,152.71,3.2739]
[1727229389838,19.9425898,152.74,152.69,8.05]
[1727229390040,8.05,152.74,152.69,8.05]
[1727229390242,1.2737,152.76,152.73,8.05]
[1727229390939,4.5466,152.76,152.73,8.05]
[1727229391442,30.44799777,152.76,152.72,11.3237]
[1727229391737,11.89219583,152.75,152.72,11.3237]
[1727229391941,4.5466,152.76,152.72,11.3237]
[1727229392142,11.89219583,152.75,152.72,11.3237]
[1727229392743,4.5466,152.76,152.72,11.3237]
[1727229393242,3.2729,152.76,152.72,11.3237]
[1727229393543,3.2729,152.76,152.73,3.2735]
[1727229393741,3.2729,152.76,152.72,8.05]
[1727229393742,49.11572162,152.77,152.72,8.05]
[1727229393947,24.52164109,152.76,152.73,3.2735]
[1727229394140,37.79257476,152.76,152.73,11.3235]
[1727229394644,25.90037893,152.75,152.73,11.3235]
[1727229394943,37.79257476,152.75,152.73,11.3235]
[1727229395142,12.62944526,152.74,152.73,11.3235]
[1727229395547,11.89219583,152.75,152.73,11.3235]
[1727229395844,11.89219583,152.74,152.73,11.3235]
[1727229396235,12.62944526,152.74,152.73,11.3235]
[1727229396841,13.26965759,152.75,152.73,11.3235]
[1727229397040,25.89910285,152.75,152.73,11.3235]
[1727229397737,29.17220285,152.75,152.72,11.3237]
[1727229397939,12.62944526,152.74,152.72,11.3237]
[1727229398333,12.62944526,152.74,152.73,11.3235]
[1727229399442,24.52164109,152.75,152.73,11.3235]
[1727229401246,24.52164109,152.75,152.73,3.2735]
[1727229401947,11.89219583,152.75,152.73,3.2735]
[1727229402147,3.273,152.76,152.73,3.2735]
[1727229402344,3.273,152.76,152.72,8.05]
[1727229403447,3.273,152.76,152.72,11.3236]
[1727229403643,20.67658842,152.77,152.72,3.2736]
[1727229403845,8.05,152.75,152.69,8.05]
[1727229404049,11.39774349,152.75,152.69,11.3242]
[1727229404941,3.2736,152.73,152.69,11.3242]
[1727229405751,8.05,152.75,152.69,8.05]
[1727229405948,8.05,152.76,152.71,8.05]
[1727229406544,11.3229,152.76,152.72,3.2737]
[1727229406944,8.05,152.76,152.72,3.2737]
[1727229407249,32.56848031,152.76,152.72,3.2737]
[1727229407445,11.89046807,152.75,152.72,3.2737]
[1727229407847,3.2731,152.75,152.72,3.2737]
[1727229408155,3.2731,152.75,152.71,11.3239]
[1727229408746,3.34523419,152.74,152.71,8.05]
[1727229408942,8.05,152.75,152.7,3.2741]
[1727229409145,3.28431051,152.74,152.7,3.2741]
[1727229409348,8.05,152.75,152.7,3.2741]
[1727229409548,3.2734,152.74,152.7,11.3241]
[1727229410454,15.16366807,152.75,152.72,8.05]
[1727229410752,11.89046807,152.74,152.72,8.05]
[1727229411054,3.2732,152.75,152.72,8.05]
[1727229412449,12.63091617,152.76,152.74,8.05]
[1727229412651,11.89324811,152.76,152.74,8.05]
[1727229413051,3.2728,152.77,152.74,8.05]
[1727229413251,9.3871,152.8,152.68,1.3794]
[1727229413252,1.3371,152.8,152.76,8.05]
[1727229413447,1.00285751,152.79,152.76,8.05]
[1727229413652,25.52544037,152.79,152.76,8.05]
[1727229413855,11.89324811,152.78,152.76,8.05]
[1727229414260,26.49953769,152.8,152.76,8.05]
[1727229414453,25.52344726,152.79,152.77,8.05]
[1727229414658,1.3843,152.82,152.78,8.05]
[1727229414861,1.00274129,152.81,152.78,8.05]
[1727229415257,1.00274129,152.81,152.78,11.3225]
[1727229416057,42.05344767,152.81,152.78,3.2725]
[1727229416259,38.78164767,152.8,152.78,3.2725]
[1727229416459,37.77890638,152.79,152.78,3.2725]
[1727229416853,37.77890638,152.79,152.78,11.3225]
[1727229417757,37.77890638,152.79,152.77,11.3226]
[1727229417959,24.51255775,152.78,152.77,11.3226]
[1727229418864,12.62465596,152.78,152.77,11.3226]
[1727229419068,12.62465596,152.78,152.77,8.05]
[1727229419069,11.88790179,152.78,152.77,8.05]
[1727229419363,37.77020858,152.79,152.77,8.05]
[1727229419560,24.51255775,152.78,152.77,8.05]
[1727229419763,24.51255775,152.78,152.73,1.2882]
[1727229419764,12.62465596,152.78,152.73,1.2882]
[1727229419967,45.81951757,152.79,152.74,8.05]
[1727229420158,37.76951757,152.78,152.74,8.05]
[1727229420365,24.51255775,152.77,152.74,8.05]
[1727229420563,11.88790179,152.78,152.74,8.05]
[1727229420755,37.76173607,152.78,152.74,8.05]
[1727229420959,25.87383428,152.78,152.74,8.05]
[1727229421159,12.61633578,152.77,152.74,8.05]
[1727229421361,11.88790179,152.77,152.74,8.05]
[1727229421661,37.76281008,152.77,152.74,8.05]
[1727229421867,11.88790179,152.76,152.74,11.3233]
[1727229422066,25.87459985,152.77,152.75,8.05]
[1727229422365,11.88790179,152.76,152.75,8.05]
[1727229422962,25.87478119,152.79,152.75,8.05]
[1727229423267,11.88790179,152.78,152.75,11.323]
[1727229423461,37.76268298,152.78,152.75,11.323]
[1727229423661,24.50469053,152.77,152.75,11.323]
[1727229423863,11.88790179,152.76,152.75,11.323]
[1727229424057,12.61678874,152.78,152.75,11.323]
[1727229424058,11.88790179,152.78,152.75,11.323]
[1727229424259,3.2723,152.79,152.75,11.323]
[1727229425167,18.3501527,152.8,152.77,8.05]
[1727229425370,6.47106522,152.8,152.77,8.05]
[1727229425866,27.76593733,152.8,152.77,8.05]
[1727229426162,11.87908748,152.79,152.72,1.2898]
[1727229426370,37.74690504,152.83,152.79,8.05]
[1727229426662,42.02135718,152.82,152.79,8.05]
[1727229426868,25.49521071,152.81,152.78,11.3225]
[1727229427064,8.05,152.84,152.78,11.3225]
[1727229427065,11.87908748,152.8,152.78,11.3225]
[1727229427369,25.86515244,152.83,152.78,11.3225]
[1727229427563,1.00273663,152.82,152.78,8.05]
[1727229427866,8.05,152.81,152.76,8.05]
[1727229428263,33.91515244,152.81,152.76,8.05]
[1727229428467,12.61117915,152.8,152.76,8.05]
[1727229428666,8.05,152.8,152.75,8.05]
[1727229429064,33.91444631,152.8,152.75,8.05]
[1727229429264,24.49026663,152.79,152.75,8.05]
[1727229429463,3.2726,152.78,152.75,8.05]
[1727229431357,29.11813931,152.78,152.69,1.3643]
[1727229431566,25.86460041,152.77,152.73,8.05]
[1727229431763,11.87600793,152.76,152.73,8.05]
[1727229432069,41.01370834,152.76,152.73,11.3235]
[1727229432262,12.61176365,152.75,152.73,11.3235]
[1727229432667,11.87600793,152.76,152.73,11.3235]
[1727229432861,11.87600793,152.75,152.73,11.3235]
[1727229433063,37.74051434,152.76,152.69,1.3643]
[1727229433269,45.79051434,152.75,152.7,8.05]
[1727229433471,37.74051434,152.74,152.7,8.05]
[1727229433669,37.74051434,152.74,152.65,1.3405]
[1727229433670,8.05,152.72,152.59,338.0]
[1727229433971,3.2746,152.69,152.65,8.05]
[1727229434367,37.74439708,152.7,152.65,8.05]
[1727229434565,24.48777158,152.69,152.65,8.05]
[1727229434865,24.48777158,152.69,152.6,4.0272]
[1727229435071,5.9319,152.73,152.68,8.05]
[1727229435765,2.6584,152.73,152.67,8.05]
[1727229435971,8.05,152.71,152.66,8.05]
[1727229436159,41.01941445,152.72,152.68,3.2746]
[1727229436360,37.74551445,152.71,152.67,8.05]
[1727229436569,37.74567372,152.7,152.67,8.05]
[1727229436762,24.49071553,152.69,152.67,8.05]
[1727229436967,11.87699678,152.68,152.67,8.05]
[1727229437169,37.74697568,152.7,152.67,8.05]
[1727229437365,41.02137568,152.7,152.67,8.05]
[1727229437568,12.61453705,152.69,152.67,8.05]
[1727229437860,24.49153383,152.69,152.67,8.05]
[1727229438563,24.49153383,152.69,152.6,4.0272]
[1727229438766,24.49153383,152.69,152.66,8.05]
[1727229439368,3.2744,152.7,152.66,8.05]
[1727229440172,3.2744,152.7,152.66,11.325]
[1727229441470,11.324,152.71,152.67,3.2748]
[1727229441665,11.9835,152.73,152.67,8.05]
[1727229441973,11.9835,152.73,152.61,3.23581843]
[1727229441974,2.6584,152.73,152.69,8.05]
[1727229442271,1.3744,152.73,152.69,8.05]
[1727229442774,9.4244,152.73,152.6,4.0272]
[1727229442970,9.4244,152.73,152.67,8.05]
[1727229443974,3.274,152.71,152.67,11.3248]
[1727229444376,3.274,152.71,152.67,8.05]
[1727229444578,1.3744,152.73,152.69,8.05]
[1727229445175,4.648,152.73,152.69,11.3242]
[1727229445476,4.648,152.73,152.7,8.05]
[1727229446274,3.2736,152.73,152.7,8.05]
[1727229447971,3.2736,152.73,152.7,11.3242]
[1727229449076,6.47029012,152.74,152.7,11.3242]
[1727229451283,3.2736,152.73,152.7,11.3242]
[1727229451672,8.05,152.73,152.69,3.2743]
[1727229452474,11.3236,152.73,152.69,3.2743]
[1727229457584,3.2736,152.73,152.69,3.2743]
[1727229457887,3.2736,152.73,152.7,11.3241]
[1727229458085,3.2734,152.74,152.7,8.05]
[1727229458291,1.2673,152.77,152.72,8.05]
[1727229458486,3.34938417,152.76,152.72,8.05]
[1727229458783,1.2673,152.77,152.72,8.05]
[1727229459385,3.20852987,152.76,152.72,8.05]
[1727229459786,6.48142987,152.76,152.73,3.2735]
[1727229460990,3.2731,152.75,152.68,2.6332]
[1727229461181,11.25852987,152.76,152.71,8.05]
[1727229461385,8.05,152.76,152.71,8.05]
[1727229461581,3.2735,152.74,152.61,6.552]
[1727229461786,3.22230955,152.75,152.7,8.05]
[1727229462395,8.05,152.74,152.7,8.05]
[1727229462690,11.24512674,152.76,152.7,8.05]
[1727229462886,3.2733,152.75,152.71,3.2739]
[1727229463285,3.260955,152.74,152.71,3.2739]
[1727229463497,8.05,152.76,152.71,3.2739]
[1727229463686,3.2735,152.74,152.7,11.3241]
[1727229463886,3.2735,152.74,152.7,3.2741]
[1727229464088,3.2735,152.74,152.71,8.05]
[1727229467992,3.2737,152.73,152.71,8.05]
[1727229468196,3.2737,152.73,152.69,11.3243]
[1727229468501,8.05,152.75,152.69,8.05]
[1727229468695,3.2739,152.72,152.69,11.3244]
[1727229468890,8.05,152.75,152.69,8.05]
[1727229469091,8.05,152.75,152.62,2.5649]
[1727229469092,8.05,152.73,152.62,2.5649]
[1727229469295,12.60570326,152.76,152.66,8.05]
[1727229469496,12.60570326,152.76,152.68,8.05]
[1727229469497,8.05,152.73,152.68,8.05]
[1727229470190,24.47500403,152.75,152.71,8.05]
[1727229470391,11.86849143,152.76,152.71,8.05]
[1727229470598,23.73702205,152.76,152.71,8.05]
[1727229470797,11.86849143,152.76,152.71,8.05]
[1727229471004,23.7366566,152.76,152.71,8.05]
[1727229471198,11.86849143,152.76,152.71,8.05]
[1727229471396,8.05,152.76,152.71,8.05]
[1727229471803,3.2731,152.75,152.71,11.3239]
[1727229473106,11.3229,152.76,152.72,3.2737]
[1727229473304,3.2729,152.76,152.72,11.3237]
[1727229473602,4.53315429,152.77,152.72,8.05]
[1727229473798,7.80595429,152.77,152.73,3.2735]
[1727229474903,3.2729,152.76,152.72,11.3237]
[1727229476101,1.284,152.79,152.74,8.05]
[1727229476301,3.2063544,152.78,152.74,8.05]
[1727229476709,1.3653,152.85,152.77,8.05]
[1727229476907,11.86517919,152.8,152.77,8.05]
[1727229478096,8.05,152.82,152.77,8.05]
[1727229478607,3.2721,152.8,152.77,8.05]
[1727229480102,3.2723,152.79,152.76,11.3227]
[1727229480296,3.2723,152.79,152.76,8.05]
[1727229481906,3.2723,152.79,152.76,11.3229]
[1727229482107,3.2725,152.78,152.76,8.05]
[1727229482408,8.05,152.82,152.76,8.05]
[1727229482603,3.2723,152.79,152.76,8.05]
[1727229483106,2.5896,152.84,152.76,11.3228]
[1727229483411,8.05,152.82,152.77,8.05]
[1727229483707,3.2721,152.8,152.77,8.05]
[1727229484301,71.79911737,152.81,152.77,11.3227]
[1727229485102,3.272,152.81,152.78,11.3224]
[1727229486002,3.272,152.81,152.78,8.05]
[1727229487102,8.05,152.81,152.76,8.05]
[1727229487299,8.05,152.79,152.72,4.0784]
[1727229487502,3.2728,152.77,152.74,8.05]
[1727229487902,3.26795887,152.78,152.74,8.05]
[1727229488104,3.2731,152.76,152.73,8.05]
[1727229488309,8.05,152.78,152.73,8.05]
[1727229488806,3.2731,152.76,152.73,8.05]
[1727229490002,3.2731,152.76,152.73,11.3235]
[1727229491799,3.2731,152.76,152.72,3.2737]
[1727229492005,3.2731,152.76,152.73,8.05]
[1727229492413,3.2731,152.76,152.73,11.3235]
[1727229493507,3.2731,152.76,152.73,8.05]
[1727229495211,3.2733,152.75,152.68,1.3559]
[1727229495409,3.2733,152.75,152.71,8.05]
[1727229495716,3.25376555,152.77,152.72,8.05]
[1727229496315,6.52646555,152.77,152.74,8.05]
[1727229496513,8.05,152.81,152.75,8.05]
[1727229496715,1.00292926,152.8,152.75,8.05]
[1727229497018,3.2726,152.78,152.75,11.3231]
[1727229497216,6.58627921,152.78,152.75,8.05]
[1727229497516,24.47261009,152.8,152.75,8.05]
[1727229498821,3.2727,152.77,152.75,8.05]
[1727229504719,3.2727,152.77,152.74,11.3233]
[1727229507520,3.32241315,152.78,152.72,8.05]
[1727229507727,8.05,152.79,152.72,8.05]
[1727229508122,3.2733,152.75,152.72,8.05]
[1727229508818,3.273,152.76,152.72,11.3237]
[1727229509023,3.273,152.76,152.72,8.05]
[1727229509730,3.28628386,152.78,152.72,8.05]
[1727229509929,21.3007557,152.79,152.72,8.05]
[1727229510231,11.8757557,152.78,152.72,11.3237]
[1727229510424,15.10211629,152.78,152.72,11.3237]
[1727229511124,3.22636059,152.78,152.72,11.3237]
[1727229511328,9.425,152.79,152.72,11.3237]
[1727229511525,1.0029165,152.78,152.72,11.3237]
[1727229511727,3.2731,152.76,152.72,11.3237]
[1727229512231,3.2731,152.76,152.73,3.2735]
[1727229512730,3.2727,152.77,152.74,8.05]
[1727229513630,3.2727,152.77,152.68,1.3559]
[1727229513631,3.2729,152.76,152.73,11.3235]
[1727229515332,15.15359812,152.78,152.74,3.2732]
[1727229515633,15.15359812,152.78,152.74,11.3232]
[1727229516031,3.2725,152.78,152.74,11.3232]
[1727229516939,8.05,152.78,152.68,1.3559]
[1727229517235,11.2665371,152.77,152.71,3.2738]
[1727229517432,19.93109812,152.77,152.71,3.2738]
[1727229517631,8.05,152.77,152.71,3.2738]
[1727229517834,3.2733,152.75,152.71,3.2738]
[1727229518035,3.29501336,152.76,152.7,11.3241]
[1727229518334,8.05,152.74,152.68,9.4059]
[1727229518932,8.05,152.74,152.69,3.2743]
[1727229519532,3.2736,152.73,152.69,3.2743]
[1727229520734,3.2738,152.72,152.69,3.2743]
[1727229521033,8.05,152.74,152.69,3.2743]
[1727229521632,19.94168383,152.74,152.69,3.2743]
[1727229521834,8.05,152.72,152.66,8.05]
[1727229522030,4.70483299,152.78,152.61,3.34948486]
[1727229522031,8.05,152.7,152.61,3.34948486]
[1727229522235,3.2746,152.68,152.65,3.2752]
[1727229522539,42.50137688,152.78,152.67,8.05]
[1727229522540,8.05,152.74,152.67,8.05]
[1727229522731,8.05,152.74,152.69,8.05]
[1727229522933,3.2739,152.72,152.69,8.05]
[1727229523339,3.2736,152.73,152.69,11.3242]
[1727229523535,8.05,152.75,152.7,8.05]
[1727229523932,13.27294658,152.75,152.72,11.3237]
[1727229524133,13.27294658,152.75,152.73,8.05]
[1727229524539,13.27294658,152.75,152.73,11.3234]
[1727229525540,3.273,152.76,152.73,8.05]
[1727229526442,12.75483299,152.78,152.73,8.05]
[1727229526443,3.2732,152.75,152.73,8.05]
[1727229526638,8.05,152.77,152.72,8.05]
[1727229527240,3.2734,152.74,152.72,8.05]
[1727229530641,12.11318378,152.77,152.73,8.05]
[1727229530939,24.86801677,152.78,152.73,8.05]
[1727229531741,3.273,152.76,152.73,11.3235]
[1727229532941,147.09315968,152.88,152.75,11.3231]
[1727229533140,8.05,152.81,152.75,11.3231]
[1727229533840,3.2725,152.78,152.75,11.3231]
[1727229536046,3.2725,152.78,152.75,8.05]
[1727229536838,8.05,152.78,152.74,8.05]
[1727229537043,11.89049681,152.78,152.74,8.05]
[1727229537446,8.05,152.79,152.74,8.05]
[1727229537648,3.2727,152.77,152.74,11.3232]
[1727229538542,3.2725,152.78,152.74,11.3232]
[1727229538843,15.16299681,152.78,152.74,11.3232]
[1727229539039,11.89049681,152.77,152.74,11.3232]
[1727229539641,3.2725,152.78,152.74,11.3232]
[1727229540050,3.2727,152.77,152.74,11.3232]
[1727229541842,15.16319681,152.77,152.74,11.3232]
[1727229542853,3.2727,152.77,152.74,11.3232]
[1727229556061,3.2727,152.77,152.75,8.05]
[1727229556268,86.04491222,153.02,152.76,8.05]
[1727229556269,11.8998553,152.82,152.76,8.05]
[1727229556473,11.8998553,152.82,152.81,8.05]
[1727229556767,15.39365886,152.83,152.75,2.6739]
[1727229556959,1.3295,152.85,152.8,8.05]
[1727229557164,33.44724521,152.87,152.82,8.05]
[1727229557361,28.66006644,152.86,152.82,8.05]
[1727229557572,25.39724521,152.85,152.82,8.05]
[1727229557763,37.29572005,152.84,152.82,8.05]
[1727229557964,11.89847484,152.83,152.82,8.05]
[1727229558166,25.38776879,152.86,152.82,8.05]
[1727229558366,3.271,152.85,152.82,8.05]
[1727229558667,25.38776879,152.85,152.82,8.05]
[1727229558868,15.16904112,152.87,152.82,8.05]
[1727229559070,26.38162973,152.86,152.83,8.05]
[1727229559263,12.11074085,152.85,152.83,8.05]
[1727229559463,37.27756928,152.85,152.83,8.05]
[1727229559669,11.89847484,152.84,152.83,8.05]
[1727229560369,25.16277837,152.85,152.83,8.05]
[1727229560969,25.16277837,152.85,152.82,8.05]
[1727229561171,8.05,152.83,152.76,1.2973]
[1727229561369,19.94847484,152.83,152.78,8.05]
[1727229561567,8.05,152.83,152.78,8.05]
[1727229562175,3.2719,152.81,152.78,8.05]
[1727229562378,8.05,152.83,152.78,8.05]
[1727229562574,8.05,152.82,152.76,8.05]
[1727229562773,3.2722,152.8,152.76,8.05]
[1727229562971,19.93083369,152.82,152.76,8.05]
[1727229563172,3.2724,152.79,152.76,8.05]
[1727229563479,6.50097329,152.79,152.76,8.05]
[1727229564574,3.2724,152.79,152.76,8.05]
[1727229564778,3.2721,152.8,152.76,11.3228]
[1727229564976,15.1502899,152.8,152.76,11.3228]
[1727229565480,11.8781899,152.8,152.78,8.05]
[1727229565974,1.3363,152.84,152.79,8.05]
[1727229565975,9.3863,152.84,152.79,8.05]
[1727229566176,3.2714,152.83,152.8,8.05]
[1727229567176,3.2716,152.82,152.79,8.05]
[1727229568174,3.272,152.81,152.72,1.3799]
[1727229568379,19.92425585,152.82,152.77,8.05]
[1727229568676,8.05,152.83,152.78,8.05]
[1727229569971,3.2717,152.82,152.78,11.3223]
[1727229574180,15.14198541,152.82,152.78,11.3223]
[1727229574383,3.2717,152.82,152.78,11.3223]
[1727229575881,15.14114872,152.82,152.78,11.3223]
[1727229576077,3.2717,152.82,152.78,11.3223]
[1727229577182,15.13969424,152.82,152.78,11.3223]
[1727229577775,3.2717,152.82,152.79,8.05]
[1727229577981,3.2717,152.82,152.78,11.3223]
[1727229578677,15.13909436,152.82,152.78,11.3223]
[1727229578879,3.2717,152.82,152.78,11.3223]
[1727229579987,3.2721,152.8,152.76,8.05]
[1727229580186,8.05,152.82,152.72,1.3799]
[1727229580386,8.05,152.8,152.74,8.05]
[1727229580586,3.27964319,152.79,152.74,8.05]
[1727229581188,3.2726,152.78,152.74,11.3232]
[1727229581492,8.05,152.8,152.76,8.05]
[1727229581788,6.60464531,152.79,152.76,8.05]
[1727229585286,3.2729,152.76,152.72,3.2737]
[1727229585684,11.3229,152.76,152.72,3.2737]
[1727229587584,11.3229,152.76,152.7,1.3652]
[1727229587784,8.05,152.75,152.7,8.05]
[1727229588486,6.57355289,152.75,152.71,3.2739]
[1727229588687,6.57355289,152.75,152.65,2.732]
[1727229588688,11.35025289,152.75,152.65,2.732]
[1727229588891,11.35025289,152.75,152.69,8.05]
[1727229589083,3.2736,152.73,152.69,11.3244]
[1727229589290,3.2736,152.73,152.7,8.05]
[1727229590190,6.57355289,152.75,152.7,11.3241]
[1727229590400,3.30025289,152.75,152.7,3.2741]
[1727229590583,13.39644928,152.77,152.65,2.732]
[1727229590783,3.274,152.71,152.67,11.3247]
[1727229590992,3.274,152.71,152.67,8.05]
[1727229591495,3.274,152.71,152.67,11.3248]
[1727229591989,3.2742,152.7,152.66,11.325]
[1727229592490,8.05,152.68,152.65,3.2752]
[1727229592883,6.47155472,152.69,152.65,11.3252]
[1727229593390,4.548885,152.77,152.66,11.3249]
[1727229593692,1.00334603,152.76,152.66,11.3249]
[1727229593891,8.05,152.71,152.66,11.3249]
[1727229594202,3.2744,152.69,152.65,11.3251]